bitfinex-derivatives/quotes_SOLF0:USTF0_20250821
["timestamp","ask_amount","ask_price","bid_price","bid_amount"]
[1755766362152,3.77254361,186.23,186.2,2.02953606]
[1755766362329,3.77254361,186.23,186.12,2.78]
[1755766362624,3.77254361,186.23,186.13,6.89242243]
[1755766362823,3.77254361,186.23,186.14,12.26422243]
[1755766363028,3.77254361,186.23,186.15,6.89242243]
[1755766363230,132.52,186.22,186.16,6.89242243]
[1755766363428,132.52,186.22,186.18,2.78]
[1755766363624,132.52,186.22,186.09,5.97219067]
[1755766363625,132.52,186.22,186.19,6.89242243]
[1755766363826,132.54,186.23,186.2,9.67242243]
[1755766364030,132.54,186.23,186.21,2.02971611]
[1755766364232,132.54,186.23,186.2,2.78]
[1755766364431,132.54,186.23,186.21,6.8929735]
[1755766364633,132.54,186.23,186.2,2.78]
[1755766364829,132.54,186.23,186.21,6.89300744]
[1755766365138,132.54,186.23,186.22,6.89300744]
[1755766365937,132.52,186.25,186.22,6.89300744]
[1755766366135,132.52,186.25,186.23,6.89300744]
[1755766366332,134.83378599,186.25,186.24,2.02977861]
[1755766366533,134.83378599,186.25,186.24,6.89274757]
[1755766370440,134.83378599,186.25,186.21,5.37]
[1755766370643,134.83378599,186.25,186.22,6.89389705]
[1755766370841,134.83378599,186.25,186.23,6.89389705]
[1755766371041,134.83378599,186.25,186.24,6.89389705]
[1755766371740,134.83378599,186.25,186.24,9.67389705]
[1755766371943,134.83378599,186.25,186.24,6.89389705]
[1755766372341,2.31378599,186.25,186.24,6.89389705]
[1755766376546,2.31378599,186.25,186.24,2.03010209]
[1755766376750,2.31378599,186.25,186.24,6.89505485]
[1755766377550,2.31378599,186.25,186.24,9.80505485]
[1755766377848,2.31378599,186.25,186.24,6.89505485]
[1755766378449,2.31378599,186.25,186.24,9.80505485]
[1755766378649,2.31378599,186.25,186.24,6.89505485]
[1755766379653,2.31378599,186.25,186.22,5.3696]
[1755766379853,2.31378599,186.25,186.24,2.91]
[1755766380052,2.31378599,186.25,186.24,9.80561643]
[1755766380244,2.31378599,186.25,186.24,6.89561643]
[1755766382054,2.31378599,186.25,186.24,6.89562205]
[1755766383258,2.31378599,186.25,186.24,9.80562205]
[1755766383959,361.0,186.33,186.25,2.91]
[1755766383960,2.31378599,186.32,186.25,2.91]
[1755766384262,2.31378599,186.32,186.26,6.89562205]
[1755766384552,2.31378599,186.32,186.27,17.43475575]
[1755766384758,2.31378599,186.32,186.29,2.91]
[1755766384958,2.31378599,186.32,186.3,12.20284194]
[1755766385158,2.31378599,186.32,186.31,5.1710342]
[1755766385355,2.31378599,186.32,186.2,4.5008155]
[1755766385555,2.31378599,186.28,186.22,2.91]
[1755766385860,134.49378599,186.28,186.23,9.93993001]
[1755766386061,134.49378599,186.28,186.24,9.93993001]
[1755766386260,134.49378599,186.28,186.25,7.02993001]
[1755766386459,134.49378599,186.28,186.26,2.02840724]
[1755766386657,134.49378599,186.28,186.24,2.91]
[1755766386964,134.49378599,186.28,186.25,6.83513456]
[1755766387256,134.49378599,186.28,186.26,6.83494033]
[1755766387560,134.49378599,186.28,186.27,2.02853742]
[1755766387955,134.49378599,186.28,186.24,2.91]
[1755766388156,134.49378599,186.28,186.25,6.83516691]
[1755766388460,134.49378599,186.28,186.26,4.80659539]
[1755766388660,134.49378599,186.28,186.27,2.02839975]
[1755766389361,134.49378599,186.28,186.24,2.91]
[1755766389561,134.49378599,186.28,186.25,6.83401737]
[1755766389762,134.49378599,186.28,186.26,6.83401737]
[1755766389962,134.49378599,186.28,186.24,2.91]
[1755766390164,134.49378599,186.28,186.25,6.83401737]
[1755766390360,134.49378599,186.28,186.26,6.83401737]
[1755766390567,134.49378599,186.28,186.21,2.91]
[1755766390869,134.49378599,186.28,186.22,6.83392644]
[1755766391161,134.49378599,186.28,186.23,6.83392644]
[1755766391464,134.49378599,186.28,186.24,6.83392644]
[1755766391660,134.49378599,186.28,186.25,6.83392644]
[1755766391868,134.49378599,186.28,186.21,2.91]
[1755766392061,134.49378599,186.28,186.22,6.83472558]
[1755766392267,134.49378599,186.28,186.23,6.83472558]
[1755766392462,2.31378599,186.25,186.24,6.83472558]
[1755766395662,2.31378599,186.25,186.15,5.97219067]
[1755766395663,2.31378599,186.25,186.16,2.91]
[1755766395864,2.31378599,186.18,186.16,2.91]
[1755766396064,2.31378599,186.18,186.13,4.5008155]
[1755766396572,2.31378599,186.18,186.16,2.91]
[1755766396969,132.06,186.22,186.18,2.91]
[1755766396970,2.31378599,186.21,186.18,2.91]
[1755766397476,2.31378599,186.21,186.16,5.3714]
[1755766397769,2.31378599,186.21,186.19,2.91]
[1755766399167,2.31378599,186.21,186.16,2.91]
[1755766400770,2.31378599,186.21,186.17,2.91]
[1755766401066,2.31378599,186.21,186.14,2.91]
[1755766401672,2.31378599,186.21,186.14,8.282]
[1755766401872,2.31378599,186.21,186.15,2.91]
[1755766402769,2.31378599,186.21,186.16,5.3715]
[1755766402972,2.31378599,186.21,186.18,2.91]
[1755766403275,2.31378599,186.22,186.13,4.51611156]
[1755766403674,2.31378599,186.22,186.2,2.91]
[1755766403871,2.31378599,186.22,186.14,4.51611156]
[1755766404177,2.31378599,186.22,186.21,2.91]
[1755766404476,2.31378599,186.22,186.15,2.91]
[1755766404971,2.31378599,186.22,186.17,5.3712]
[1755766405181,2.31378599,186.22,186.18,2.91]
[1755766405472,2.31378599,186.22,186.2,2.91]
[1755766405872,132.04,186.26,186.15,4.51611156]
[1755766406082,132.04,186.26,186.17,7.26611156]
[1755766406377,132.04,186.26,186.21,5.3699]
[1755766406571,132.04,186.26,186.23,2.75]
[1755766407674,132.04,186.26,186.24,6.8774436]
[1755766407878,132.04,186.26,186.25,6.8774436]
[1755766409072,132.04,186.26,186.2,2.75]
[1755766409278,132.04,186.26,186.21,6.87152263]
[1755766409479,132.04,186.26,186.22,6.87152263]
[1755766409678,132.04,186.26,186.23,6.87157926]
[1755766409878,132.04,186.26,186.24,6.87157926]
[1755766410076,132.04,186.26,186.25,4.8950944]
[1755766410276,132.04,186.26,186.25,4.89526212]
[1755766410683,132.04,186.26,186.25,6.87173775]
[1755766411077,132.04,186.26,186.25,4.89526212]
[1755766411273,132.04,186.26,186.21,2.75]
[1755766411482,132.04,186.26,186.22,6.8720116]
[1755766411670,2.31378599,186.22,186.14,2.75]
[1755766411875,2.31378599,186.22,186.15,6.87293604]
[1755766412179,2.31378599,186.22,186.16,6.87293604]
[1755766412379,2.31378599,186.22,186.17,6.87293604]
[1755766412580,2.31378599,186.22,186.18,6.87293604]
[1755766412781,2.31378599,186.22,186.19,6.87293604]
[1755766412979,2.31378599,186.22,186.2,4.89603644]
[1755766413182,2.31378599,186.22,186.15,2.75]
[1755766413381,2.31378599,186.19,186.16,6.86974689]
[1755766413680,2.31378599,186.19,186.17,6.86974689]
[1755766413883,2.31378599,186.19,186.18,6.86974689]
[1755766414777,2.31378599,186.19,186.12,2.75]
[1755766414980,2.31378599,186.16,186.1,2.75]
[1755766415178,2.31378599,186.13,186.07,4.51611156]
[1755766415479,2.31378599,186.1,186.04,4.51611156]
[1755766415678,132.26,186.19,186.04,2.75]
[1755766415679,2.31378599,186.07,186.04,2.75]
[1755766415883,2.31378599,186.07,186.01,2.75]
[1755766416083,2.31378599,186.1,186.02,2.75]
[1755766416976,2.31378599,186.1,186.03,5.3752]
[1755766417584,2.31378599,186.1,186.04,5.375]
[1755766417985,2.31378599,186.1,186.04,8.125]
[1755766418774,2.31378599,186.1,186.05,5.3746]
[1755766419073,2.31378599,186.1,186.07,2.75]
[1755766419277,2.31378599,186.1,186.08,2.75]
[1755766419677,2.31378599,186.12,186.02,2.75]
[1755766419878,132.56,186.16,186.02,2.75]
[1755766420080,2.31378599,186.14,186.11,2.75]
[1755766420480,2.31378599,186.14,186.1,2.75]
[1755766420685,2.31378599,186.14,186.09,5.3733]
[1755766420881,2.31378599,186.14,186.11,2.75]
[1755766421777,132.62,186.19,186.09,2.75]
[1755766421980,2.31378599,186.15,186.09,8.1235]
[1755766422380,2.31378599,186.15,186.09,2.75]
[1755766423377,2.31378599,186.12,186.05,2.75]
[1755766423782,2.31378599,186.12,186.05,8.1245]
[1755766423977,2.31378599,186.12,186.05,2.75]
[1755766424783,2.31378599,186.12,186.06,5.3743]
[1755766424981,2.31378599,186.12,186.05,2.75]
[1755766425591,2.31378599,186.12,186.06,5.3744]
[1755766425990,132.6,186.2,186.07,2.75]
[1755766426186,2.31378599,186.13,186.07,2.75]
[1755766426589,2.31378599,186.11,186.07,2.75]
[1755766426788,2.31378599,186.11,186.03,2.75]
[1755766426988,2.31378599,186.09,186.04,9.43495041]
[1755766427190,2.31378599,186.09,186.05,9.43495041]
[1755766427489,2.31378599,186.09,186.06,2.75]
[1755766427889,2.31378599,186.11,186.01,2.31378599]
[1755766428085,2.31378599,186.11,186.03,2.75]
[1755766428285,2.31378599,186.11,186.05,5.3745]
[1755766428592,2.31378599,186.11,186.07,2.75]
[1755766428891,2.31378599,186.11,186.08,2.75]
[1755766429588,2.31378599,186.11,186.0,2.31378599]
[1755766429789,8.87845452,186.27,185.99,4.51611156]
[1755766429790,2.31378599,186.17,186.08,2.75]
[1755766429989,2.31378599,186.17,186.11,5.3729]
[1755766430694,363.31378599,186.3,186.15,5.06378599]
[1755766430695,2.31378599,186.3,186.15,5.06378599]
[1755766430888,2.31378599,186.26,186.16,2.75]
[1755766431090,2.31378599,186.26,186.18,5.3708]
[1755766431290,2.31378599,186.26,186.16,2.75]
[1755766431484,2.31378599,186.24,186.17,6.68147893]
[1755766431682,2.31378599,186.21,186.13,2.75]
[1755766432189,2.31378599,186.19,186.13,2.75]
[1755766432584,2.31378599,186.16,186.1,2.75]
[1755766432790,2.31378599,186.16,186.11,6.68427341]
[1755766433093,2.31378599,186.16,186.13,2.75]
[1755766433489,0.9349184,186.26,186.06,4.51611156]
[1755766433490,2.31378599,186.2,186.06,4.51611156]
[1755766433687,2.31378599,186.2,186.11,2.75]
[1755766433889,2.31378599,186.2,186.12,4.77161408]
[1755766434091,2.31378599,186.2,186.11,2.75]
[1755766434290,2.31378599,186.2,186.12,6.68519164]
[1755766434593,2.31378599,186.2,186.11,2.75]
[1755766434794,2.31378599,186.18,186.11,2.75]
[1755766435391,2.31378599,186.18,186.04,4.51611156]
[1755766435592,2.31378599,186.12,186.07,2.75]
[1755766435795,2.31378599,186.12,186.08,9.4384858]
[1755766436095,2.31378599,186.12,186.08,2.75]
[1755766436295,3.77533611,186.15,186.02,2.93]
[1755766436497,3.77533611,186.15,186.04,2.93]
[1755766436694,3.77533611,186.15,186.08,2.93]
[1755766438400,3.77533611,186.15,186.04,2.93]
[1755766438592,3.77533611,186.12,186.05,1.91561675]
[1755766438793,3.77533611,186.12,186.06,1.91561675]
[1755766438994,3.77533611,186.12,186.04,2.93]
[1755766439188,3.77533611,186.12,186.05,1.91576458]
[1755766439387,3.77533611,186.12,186.06,1.91576458]
[1755766439694,3.77533611,186.12,186.04,2.93]
[1755766439903,3.77533611,186.15,186.05,1.91571493]
[1755766440096,3.77533611,186.15,186.06,4.84551086]
[1755766440296,3.77533611,186.15,186.07,7.28941086]
[1755766440600,3.77533611,186.15,186.09,2.93]
[1755766440796,3.77533611,186.15,186.1,4.95260754]
[1755766440999,3.77533611,186.15,186.11,4.95260754]
[1755766441301,3.77533611,186.15,186.12,4.95260754]
[1755766441600,3.77533611,186.18,186.03,2.93]
[1755766441801,3.77533611,186.18,186.05,2.93]
[1755766441996,3.77533611,186.18,186.1,2.93]
[1755766442299,3.77533611,186.18,186.11,4.95263879]
[1755766442499,3.77533611,186.18,186.12,4.95263879]
[1755766442698,3.77533611,186.18,186.09,5.3735]
[1755766442900,3.77533611,186.18,186.1,4.95240967]
[1755766443099,3.77533611,186.18,186.11,4.95240967]
[1755766443302,3.77533611,186.18,186.12,4.95240967]
[1755766443600,3.77533611,186.15,186.03,2.93]
[1755766443802,3.77533611,186.15,186.06,8.3042]
[1755766444106,3.77533611,186.15,186.07,6.86105326]
[1755766444301,3.77533611,186.15,186.08,6.86122572]
[1755766444503,3.77533611,186.15,186.09,4.95247688]
[1755766444702,3.77533611,186.15,186.1,4.95247688]
[1755766444901,3.77533611,186.15,186.06,2.93]
[1755766445097,3.77533611,186.15,186.07,6.86144174]
[1755766445300,3.77533611,186.12,186.08,4.95271125]
[1755766445501,3.77533611,186.12,186.03,2.93]
[1755766445697,3.77533611,186.09,186.04,6.86194426]
[1755766445901,3.77533611,186.09,186.05,4.95300614]
[1755766446102,3.77533611,186.09,186.06,4.95300614]
[1755766446409,3.77533611,186.09,186.07,4.95300614]
[1755766446709,3.77533611,186.09,186.03,2.93]
[1755766446900,3.77533611,186.09,186.04,6.86120948]
[1755766447100,3.77533611,186.09,186.05,4.95245107]
[1755766447299,3.77533611,186.06,185.98,2.93]
[1755766447496,3.77533611,186.06,185.99,6.86083741]
[1755766447799,3.77533611,186.06,186.0,10.21480537]
[1755766448000,3.77533611,186.06,186.02,2.93]
[1755766448202,3.77533611,186.06,186.03,2.93]
[1755766449804,3.77533611,186.06,185.99,2.93]
[1755766450005,3.77533611,186.06,186.0,1.90791587]
[1755766450204,3.77533611,186.06,186.01,4.83791587]
[1755766450397,3.77533611,186.06,185.93,2.93]
[1755766450601,3.77533611,186.06,185.97,5.3769]
[1755766450808,3.77533611,186.06,185.98,4.83772945]
[1755766451100,3.77533611,186.06,185.99,1.90772945]
[1755766451303,3.77533611,186.06,185.98,2.93]
[1755766452304,3.77533611,186.06,185.99,1.90820739]
[1755766452504,3.77533611,186.06,185.98,2.93]
[1755766452704,3.77533611,186.06,185.99,1.90820739]
[1755766452905,3.77533611,186.06,185.98,8.3067]
[1755766453105,3.77533611,186.06,185.99,1.90820739]
[1755766453306,3.77533611,186.06,185.98,2.93]
[1755766453507,3.77533611,186.06,185.99,1.90858991]
[1755766453804,3.77533611,186.06,185.98,2.93]
[1755766454006,3.77533611,186.06,185.99,1.90862373]
[1755766454206,3.77533611,186.06,185.98,2.93]
[1755766454595,3.77533611,186.06,185.98,8.3067]
[1755766455407,3.77533611,186.06,185.99,1.90949399]
[1755766455606,3.77533611,186.06,186.0,1.90949399]
[1755766455802,3.77533611,186.06,185.98,2.93]
[1755766456002,3.77533611,186.06,185.99,7.28570646]
[1755766456306,3.77533611,186.06,186.0,2.93]
[1755766456506,3.77533611,186.06,186.01,1.91008598]
[1755766456697,3.77533611,186.06,186.0,5.376]
[1755766456901,3.77533611,186.06,186.03,2.93]
[1755766457307,3.77533611,186.06,186.0,5.376]
[1755766457501,3.77533611,186.06,186.02,2.93]
[1755766457696,3.77533611,186.06,186.03,2.93]
[1755766458400,2.31846614,186.06,186.03,2.93]
[1755766458698,2.31846614,186.06,186.0,8.306]
[1755766458903,2.31846614,186.06,186.02,2.93]
[1755766460108,2.31846614,186.03,185.95,2.93]
[1755766460309,2.31846614,186.03,185.96,1.91127605]
[1755766460508,2.31846614,186.03,185.98,2.93]
[1755766460709,2.31846614,186.03,185.99,1.91129351]
[1755766460909,2.31846614,186.03,186.0,2.93]
[1755766461807,2.31846614,186.03,186.01,2.93]
[1755766463111,2.31846614,186.03,185.98,2.93]
[1755766463313,2.31846614,186.03,186.0,2.93]
[1755766463508,133.0,186.07,185.93,2.31846614]
[1755766463813,2.31846614,186.05,186.02,2.93]
[1755766464412,2.31846614,186.05,185.93,6.8345777]
[1755766464714,2.31846614,186.05,186.03,2.93]
[1755766466309,2.31846614,186.05,185.99,2.83]
[1755766466514,2.31846614,186.05,186.0,4.74002704]
[1755766466710,2.31846614,186.05,186.0,2.83]
[1755766466910,132.9,186.08,185.92,2.83]
[1755766466911,2.31846614,186.02,185.92,2.83]
[1755766467111,132.9,186.08,185.94,2.83]
[1755766467112,2.31846614,185.99,185.94,2.83]
[1755766467306,2.31846614,185.99,185.97,2.83]
[1755766467515,2.31846614,186.03,185.98,1.91013228]
[1755766467812,2.31846614,186.03,186.0,2.83]
[1755766468508,2.31846614,186.03,185.94,2.83]
[1755766468710,2.31846614,186.08,185.98,2.31846614]
[1755766469013,2.31846614,186.08,186.0,2.83]
[1755766469214,2.31846614,186.08,186.03,2.83]
[1755766469414,2.31846614,186.08,186.05,2.83]
[1755766469710,2.31846614,186.08,186.06,2.83]
[1755766470010,115.61267549,186.09,186.0,2.31846614]
[1755766470214,115.61267549,186.09,186.08,2.83]
[1755766470808,2.31846614,186.12,186.08,2.83]
[1755766471214,2.31846614,186.14,186.1,2.83]
[1755766471813,2.31846614,186.14,186.11,2.83]
[1755766472009,2.31846614,186.14,186.12,2.83]
[1755766472513,135.31846614,186.16,186.12,2.83]
[1755766473013,2.31846614,186.14,186.09,2.83]
[1755766473416,2.31846614,186.12,186.03,2.83]
[1755766473719,2.31846614,186.09,186.05,2.83]
[1755766473920,2.31846614,186.09,186.06,2.83]
[1755766474521,2.31846614,186.09,186.02,2.83]
[1755766474819,2.31846614,186.09,186.03,1.9093404]
[1755766475021,2.31846614,186.09,186.04,1.9093404]
[1755766475215,2.31846614,186.09,186.05,2.83]
[1755766476321,3.77660986,186.12,186.05,2.83]
[1755766476919,3.77660986,186.12,186.0,5.3758]
[1755766477125,3.77660986,186.12,186.01,4.74109973]
[1755766477318,3.77660986,186.12,186.02,1.91109973]
[1755766477523,3.77660986,186.12,186.03,1.91109973]
[1755766477726,3.77660986,186.12,186.01,8.2056]
[1755766478025,3.77660986,186.12,186.02,1.9120119]
[1755766478221,3.77660986,186.12,186.03,1.9120119]
[1755766478524,3.77660986,186.12,186.04,1.91270923]
[1755766478720,3.77660986,186.12,186.01,2.83]
[1755766478924,3.77660986,186.12,186.02,1.91274211]
[1755766479125,3.77660986,186.12,186.03,1.91292577]
[1755766479325,3.77660986,186.12,186.04,1.91357016]
[1755766479526,3.77660986,186.12,186.01,8.2058]
[1755766479726,3.77660986,186.12,186.02,1.91356986]
[1755766480027,3.77660986,186.12,186.03,1.91356986]
[1755766480231,3.77660986,186.12,186.01,8.2058]
[1755766480525,3.77660986,186.12,186.02,1.91436241]
[1755766480724,3.77660986,186.09,186.03,1.91436241]
[1755766480927,3.77660986,186.09,186.04,1.91436241]
[1755766481229,3.77660986,186.09,186.05,2.83]
[1755766483629,136.73660986,186.12,186.06,1.91515208]
[1755766483829,136.73660986,186.12,186.05,2.83]
[1755766484029,136.73660986,186.12,186.06,1.91513577]
[1755766484330,136.73660986,186.12,186.05,2.83]
[1755766484634,136.73660986,186.12,186.06,1.91517464]
[1755766484929,3.77660986,186.12,186.05,2.83]
[1755766485132,3.77660986,186.12,186.06,1.91517404]
[1755766485430,3.77660986,186.12,186.07,1.91522537]
[1755766485630,3.77660986,186.12,186.07,2.83]
[1755766487632,3.77660986,186.12,186.02,2.83]
[1755766487828,3.77660986,186.09,186.03,1.91594745]
[1755766488131,3.77660986,186.09,186.04,1.91594745]
[1755766488327,3.77660986,186.09,186.05,1.91594745]
[1755766488527,3.77660986,186.09,186.02,2.83]
[1755766488728,3.77660986,186.09,186.03,1.91657137]
[1755766488928,3.77660986,186.09,186.04,1.91657137]
[1755766489129,3.77660986,186.09,186.02,2.83]
[1755766489327,3.77660986,186.09,186.03,1.91690468]
[1755766489530,3.77660986,186.09,186.04,1.91690468]
[1755766489830,3.77660986,186.09,186.02,2.83]
[1755766490032,3.77660986,186.09,186.03,1.91690468]
[1755766490227,3.77660986,186.09,186.04,1.91690468]
[1755766490532,3.77660986,186.09,186.02,2.83]
[1755766490832,3.77660986,186.09,186.03,1.9171529]
[1755766491031,3.77660986,186.09,186.04,1.9171529]
[1755766491231,3.77660986,186.09,186.02,2.83]
[1755766491429,3.77660986,186.09,186.03,1.91719169]
[1755766491629,3.77660986,186.09,186.05,2.83]
[1755766492033,3.77660986,186.09,186.02,2.83]
[1755766492233,3.77660986,186.09,186.03,1.91721987]
[1755766492433,3.77660986,186.09,186.04,4.74721987]
[1755766492733,3.77660986,186.09,186.07,2.83]
[1755766492929,3.77660986,186.09,186.02,5.3755]
[1755766493134,3.77660986,186.09,186.05,2.83]
[1755766493736,3.77660986,186.09,186.06,1.91714282]
[1755766494039,3.77660986,186.09,186.05,2.83]
[1755766494238,3.77660986,186.09,186.06,1.91707733]
[1755766494434,3.77660986,186.09,186.05,2.83]
[1755766494734,3.77660986,186.09,186.06,1.91707733]
[1755766494936,3.77660986,186.09,186.05,2.83]
[1755766495132,3.77660986,186.09,186.06,1.91707733]
[1755766495336,3.77660986,186.09,186.05,2.83]
[1755766495735,3.77660986,186.09,186.02,5.3755]
[1755766496038,3.77660986,186.09,186.03,1.91708378]
[1755766496235,3.77660986,186.09,186.04,1.91708378]
[1755766496435,2.31829912,186.06,186.03,3.0]
[1755766496633,2.31829912,186.06,186.04,4.91727856]
[1755766496840,2.31829912,186.06,186.02,5.3755]
[1755766497040,2.31829912,186.06,186.04,3.0]
[1755766498141,2.31829912,186.06,186.05,3.0]
[1755766498336,2.31829912,186.06,186.05,4.91762307]
[1755766498543,2.31829912,186.06,185.99,3.0]
[1755766498744,2.31829912,186.06,186.0,1.91764364]
[1755766498946,2.31829912,186.06,186.01,1.91764364]
[1755766499244,2.31829912,186.06,186.03,3.0]
[1755766499444,2.31829912,186.06,186.04,4.91764364]
[1755766499641,2.31829912,186.06,186.05,3.0]
[1755766499846,2.31829912,186.06,186.05,4.91784866]
[1755766500538,2.31829912,186.06,186.05,1.91784866]
[1755766500739,2.31829912,186.06,185.99,3.0]
[1755766500944,2.31829912,186.03,185.99,3.0]
[1755766501146,138.53989956,186.11,186.0,3.0]
[1755766501340,2.31829912,186.04,186.01,3.0]
[1755766502546,2.31829912,186.04,185.98,3.0]
[1755766504539,2.31829912,186.01,185.94,3.0]
[1755766505350,2.31829912,186.01,185.94,8.3778]
[1755766506147,2.31829912,186.01,185.92,4.51611156]
[1755766506351,2.31829912,186.01,185.95,3.0]
[1755766506751,2.31829912,186.01,185.97,5.377]
[1755766506952,2.31829912,186.01,185.98,3.0]
[1755766507253,2.31829912,186.01,185.99,3.0]
[1755766508954,115.4026241,186.07,185.99,3.0]
[1755766509150,2.31829912,186.04,185.99,3.0]
[1755766509351,2.31829912,186.04,186.01,3.0]
[1755766510044,2.31829912,186.06,186.03,3.0]
[1755766510451,2.31829912,186.06,185.96,4.51611156]
[1755766510452,2.31829912,186.06,185.97,3.0]
[1755766510652,2.31829912,186.06,186.0,3.0]
[1755766512353,2.31829912,186.06,186.0,8.3759]
[1755766512556,2.31829912,186.06,186.0,3.0]
[1755766512949,2.31829912,186.06,186.02,3.0]
[1755766513550,2.31829912,186.06,186.01,5.3756]
[1755766513855,2.31829912,186.06,185.97,3.0]
[1755766515156,2.31829912,186.06,185.97,8.3769]
[1755766515456,2.31829912,186.06,185.98,3.0]
[1755766515653,2.31829912,186.06,185.98,8.3766]
[1755766516150,115.4026241,186.07,185.99,3.0]
[1755766516351,2.31829912,186.04,185.98,5.3766]
[1755766516553,2.31829912,186.04,186.0,3.0]
[1755766516754,2.31829912,186.04,186.01,3.0]
[1755766517152,2.31829912,186.04,185.95,4.51835362]
[1755766517349,2.31829912,185.99,185.95,3.0]
[1755766517548,2.31829912,185.99,185.96,3.0]
[1755766517953,2.31829912,185.99,185.93,4.51835362]
[1755766518153,2.31829912,185.99,185.97,3.0]
[1755766518551,2.31829912,186.01,185.99,3.0]
[1755766519155,2.31829912,186.01,186.0,3.0]
[1755766520859,2.31829912,186.01,185.96,3.0]
[1755766521054,2.31829912,186.01,185.95,3.0]
[1755766521455,2.31829912,186.01,185.95,8.3773]
[1755766521749,2.31829912,186.01,185.95,3.0]
[1755766522359,2.31829912,186.01,185.96,5.3771]
[1755766522557,2.31829912,186.01,185.98,3.0]
[1755766522756,2.31829912,186.01,185.99,3.0]
[1755766524256,2.31829912,186.01,185.96,5.3772]
[1755766524453,2.31829912,186.01,185.97,3.0]
[1755766524857,2.31829912,186.01,185.98,3.0]
[1755766525165,2.31829912,186.01,185.99,3.0]
[1755766526260,2.31829912,186.01,185.98,3.01]
[1755766526761,2.31829912,186.01,185.99,3.01]
[1755766526963,2.31829912,186.01,185.96,5.3772]
[1755766527262,2.31829912,186.01,185.97,3.01]
[1755766528461,2.31829912,186.01,185.98,3.01]
[1755766528664,2.31829912,186.03,185.97,5.377]
[1755766528965,2.31829912,186.03,185.99,3.01]
[1755766529666,134.69829912,186.03,185.99,3.01]
[1755766530067,134.69829912,186.03,185.95,4.51835362]
[1755766530068,2.31829912,186.03,185.95,4.51835362]
[1755766530263,134.69829912,186.03,185.94,12.90605362]
[1755766530561,2.31829912,186.03,185.94,12.90605362]
[1755766530764,132.38,186.02,185.94,12.90605362]
[1755766530962,132.38,186.02,185.96,3.01]
[1755766531366,134.69829912,186.03,185.96,8.3873]
[1755766532267,2.31829912,186.03,185.96,8.3873]
[1755766532571,134.69829912,186.03,185.96,8.3873]
[1755766533070,134.69829912,186.03,185.96,3.01]
[1755766533368,132.38,186.02,185.96,3.01]
[1755766534070,2.31829912,186.03,185.96,8.3871]
[1755766534271,134.69829912,186.03,185.96,8.3871]
[1755766539081,2.31829912,186.03,185.96,8.3871]
[1755766539382,132.38,186.02,185.96,8.3871]
[1755766539775,132.38,186.02,185.94,4.51835362]
[1755766539978,132.38,186.02,185.98,3.01]
[1755766540177,132.38,186.02,185.99,3.01]
[1755766541384,132.38,186.02,186.0,3.01]
[1755766541684,132.38,186.02,185.96,7.52835362]
[1755766542186,132.38,186.03,185.98,5.3766]
[1755766542484,132.38,186.03,185.98,3.01]
[1755766543282,132.38,186.03,185.98,8.3867]
[1755766544284,132.38,186.03,185.98,3.01]
[1755766545180,132.38,186.03,185.97,9.89525362]
[1755766545485,132.38,186.03,185.97,4.51835362]
[1755766545883,2.31829912,186.04,185.97,4.51835362]
[1755766546083,132.38,186.03,185.97,4.51835362]
[1755766546383,132.38,186.03,185.96,4.51835362]
[1755766548289,2.31829912,186.01,185.95,4.51835362]
[1755766549285,2.31829912,186.01,185.97,3.01]
[1755766549988,132.38,186.0,185.97,3.01]
[1755766550483,132.38,186.01,185.98,3.01]
[1755766551486,132.38,186.01,185.98,8.3865]
[1755766552286,2.31829912,186.04,185.99,8.3864]
[1755766552483,132.38,186.03,185.99,8.3864]
[1755766552889,132.38,186.03,185.98,5.3766]
[1755766553188,132.38,186.03,185.96,7.52835362]
[1755766553385,132.38,186.03,185.97,5.377]
[1755766555089,132.38,186.03,185.96,12.90555362]
[1755766555289,2.31829912,186.01,185.95,4.51835362]
[1755766555683,2.31829912,186.01,185.95,9.89595362]
[1755766556688,2.31829912,186.01,185.97,3.05]
[1755766557486,2.31829912,186.01,185.98,3.05]